[Event "Marienbad B2-IM 2024"]
[Site "Marianske Lazne"]
[Date "2024.01.17"]
[Round "6.16"]
[White "Wang, Yukun"]
[Black "Pisk, Petr"]
[Result "0-1"]
[ECO "C62"]
[WhiteElo "2117"]
[BlackElo "2295"]
[Annotator "RC"]
[PlyCount "122"]
[EventDate "2024.01.10"]
[EventType "tourn"]
[EventCountry "CZE"]
[SourceTitle "playchess.com"]
[Source "ChessBase"]
[SourceQuality "1"]
[TimeControl "40/5400+30:1800+30"]

1. e4 {[%emt 0:00:02]} e5 {[%emt 0:00:37]} 2. Nf3 {[%emt 0:00:05]} Nc6 {[%emt 0:00:16]} 3. Bb5 {[%emt 0:00:14]} d6 {[%emt 0:00:24]} 4. c3 {[%emt 0:00:18]} Bd7 {[%emt 0:02:15]} 5. O-O {[%emt 0:00:55]} Nge7 {[%emt 0:04:29]} 6. Re1 {[%emt 0:03:32]} Ng6 {[%emt 0:01:23]} 7. d4 {[%emt 0:02:26]} Be7 {[%emt 0:00:47]} 8. Nbd2 {[%emt 0:02:26]} O-O {[%emt 0:02:15]} 9. h3 {[%emt 0:04:20]} Nxd4 {[%emt 0:11:16]} 10. Nxd4 {[%emt 0:01:34]} exd4 {[%emt 0:00:47]} 11. Bxd7 {[%emt 0:00:07]} dxc3 {[%emt 0:02:53]} 12. Ba4 {[%emt 0:00:35]} cxd2 {[%emt 0:00:27]} 13. Qxd2 {[%emt 0:00:12]} c6 {[%emt 0:04:40]} 14. g3 {[%emt 0:05:40]} Qd7 {[%emt 0:16:56]} 15. Kg2 {[%emt 0:02:35]} Rad8 {[%emt 0:08:33]} 16. f4 {[%emt 0:00:51]} d5 {[%emt 0:03:57]} 17. e5 {[%emt 0:03:49]} f5 {[%emt 0:04:54]} 18. b4 {[%emt 0:01:28]} Rfe8 {[%emt 0:04:32]} 19. Bb2 {[%emt 0:00:25]} Nf8 {[%emt 0:00:46]} 20. Bc2 {[%emt 0:01:48]} d4 {[%emt 0:06:17]} 21. Bb3+ {[%emt 0:07:53]} Kh8 {[%emt 0:03:35]} 22. a3 {[%emt 0:03:51]} Ne6 {[%emt 0:00:45]} 23. Qd3 {[%emt 0:01:59]} g6 {[%emt 0:03:12]} 24. Rad1 {[%emt 0:00:10]} b5 {[%emt 0:01:03]} 25. Qf3 {[%emt 0:01:39]} c5 {[%emt 0:00:50]} 26. bxc5 {[%emt 0:01:07]} Bxc5 {[%emt 0:00:07]} 27. Rd3 {[%emt 0:04:15]} a5 {[%emt 0:03:00]} 28. Red1 {[%emt 0:02:31]} a4 {[%emt 0:00:43]} 29. Ba2 {[%emt 0:00:01]} Qa7 {[%emt 0:02:23]} 30. h4 {[%emt 0:05:03]} h5 {[%emt 0:00:48]} 31. Bd5 {[%emt 0:00:15]} Qb6 {[%emt 0:00:16]} 32. Rc1 {[%emt 0:02:04]} Rc8 {[%emt 0:01:23]} 33. Bxe6 {[%emt 0:00:53]} Qxe6 {[%emt 0:01:14]} 34. Bxd4 {[%emt 0:00:14]} Bf8 {[%emt 0:08:37]} 35. Rdc3 {[%emt 0:02:15]} Rxc3 {[%emt 0:00:01]} 36. Rxc3 {[%emt 0:00:31]} Rd8 {[%emt 0:00:10]} 37. Rc6 {[%emt 0:01:20]} Qd5 {[%emt 0:01:26]} 38. Qxd5 {[%emt 0:01:32]} Rxd5 {[%emt 0:00:02]} 39. Bc3 {[%emt 0:00:01]} Rc5 {[%emt 0:00:49]} 40. e6+ {[%emt 0:03:28]} Kg8 {[%emt 0:00:56]} 41. e7 {[%emt 0:30:48]} Bxe7 {[%emt 0:30:36]} 42. Rxg6+ {[%emt 0:00:07]} Kf7 {[%emt 0:00:00]} 43. Rg7+ {[%emt 0:00:00]} Kf8 {[%emt 0:00:00]} 44. Ba1 {[%emt 0:00:00]} Rc2+ {[%emt 0:00:00]} 45. Kh3 {[%emt 0:00:00]} Bxa3 {[%emt 0:00:00]} 46. Rg5 {[%emt 0:00:00]} Bb2 {[%emt 0:00:00]} 47. Rxf5+ {[%emt 0:00:00]} Kg7 {[%emt 0:00:00]} 48. Rxb5 {[%emt 0:00:00]} Bxa1 {[%emt 0:00:00]} 49. Ra5 {[%emt 0:00:00]} Rc4 {[%emt 0:00:00]} 50. Rxh5 {[%emt 0:00:00]} Bc3 {[%emt 0:00:00]} 51. Rg5+ {[%emt 0:00:00]} Kf7 {[%emt 0:00:00]} 52. Rf5+ {[%emt 0:00:00]} Ke7 {[%emt 0:00:00]} 53. Rh5 {[%emt 0:00:00]} Kd6 {[%emt 0:00:00]} 54. Rh6+ {[%emt 0:00:00]} Kc5 {[%emt 0:00:00]} 55. Ra6 {[%emt 0:00:00]} Kb5 {[%emt 0:00:00]} 56. Ra8 {[%emt 0:00:00]} Rc6 {[%emt 0:00:05]} 57. h5 {[%emt 0:00:00]} Ra6 {[%emt 0:00:19]} 58. Rb8+ {[%emt 0:00:00]} Kc4 {[%emt 0:00:07]} 59. Rb1 {[%emt 0:00:00]} a3 {[%emt 0:00:08]} 60. g4 {[%emt 0:00:00]} a2 {[%emt 0:00:02]} 61. Rc1 {[%emt 0:00:00]} Rb6 {[%emt 0:00:46]} 0-1

[Event "Marienbad B2-IM 2024"]
[Site "Marianske Lazne"]
[Date "2024.01.17"]
[Round "6.17"]
[White "Ivanov, Mike"]
[Black "Balinski, Damian"]
[Result "1-0"]
[ECO "A06"]
[WhiteElo "2356"]
[BlackElo "2226"]
[Annotator "TA"]
[PlyCount "81"]
[EventDate "2024.01.10"]
[EventType "tourn"]
[EventCountry "CZE"]
[SourceTitle "playchess.com"]
[Source "ChessBase"]
[SourceQuality "1"]
[TimeControl "40/5400+30:1800+30"]

{[%evp 14,81,23,23,79,44,72,37,56,35,40,40,36,30,39,22,66,80,81,62,76,45,93,119,105,115,111,115,75,86,69,76,107,95,100,99,137,125,205,188,187,185,382,356,456,402,1110,1097,29992,29993,29997,29992,29996,29991,29991,29990,29989,29973,29972,29973,29963,29956,29992,29993,29993,29994,29997,29998,29998,923]} 1. Nf3 {[%emt 0:00:03]} d5 {[%emt 0:00:02]} 2. g3 {[%emt 0:00:11]} Nf6 {[%emt 0:00:06]} 3. Bg2 {[%emt 0:00:09]} Bf5 {[%emt 0:00:28]} 4. O-O {[%emt 0:02:39]} e6 {[%emt 0:00:30]} 5. c4 {[%emt 0:01:31]} c6 {[%emt 0:00:15]} 6. d3 {[%emt 0:00:34]} h6 {[%emt 0:00:22]} 7. cxd5 {[%emt 0:05:40]} exd5 {[%emt 0:06:42]} 8. Nc3 {[%emt 0:00:12][%cal Oe2e4]} d4 {[%emt 0:13:36] [#] A11: English Opening: 1...c6.} (8... Be7 $11 {keeps the balance.}) 9. Nb1 $146 {[%emt 0:02:01]} ({Predecessor:} 9. e4 dxe3 10. Bxe3 Be7 11. Nd4 Bg6 12. Qb3 Qd7 13. Nf3 Bd6 14. d4 O-O 15. Ne5 Bxe5 16. dxe5 {1-0 Mendonca,L (2452)-Drygalov,S (2483) Titled Tuesday intern op 28th Apr blitz 2020 (3)}) 9... Bc5 {[%emt 0:01:29] [#]} 10. b4 $1 {[%emt 0:04:40]} Bxb4 {[%emt 0:11:53] White is slightly better.} 11. Qb3 {[%emt 0:00:59]} a5 {[%emt 0:02:04]} 12. a3 {[%emt 0:11:54]} Be6 {[%emt 0:00:59]} 13. Qb2 {[%emt 0:00:20]} Bc5 {[%emt 0:00:44]} 14. Qxb7 {[%emt 0:01:15]} Ra7 {[%emt 0:00:33]} 15. Qb2 {[%emt 0:00:13] White is more active.} O-O {[%emt 0:01:07]} 16. Bf4 $1 {[%emt 0:04:34]} Ra6 {[%emt 0:21:53]} 17. Nbd2 {[%emt 0:18:25]} Nd5 {[%emt 0:10:41]} (17... Ba7 $14) 18. Be5 $1 $16 {[%emt 0:01:17]} (18. Nxd4 $2 Nxf4 19. Nxe6 Nxe6 $19) 18... Nc3 {[%emt 0:08:55]} 19. Ne4 {[%emt 0:00:43] Wards off f6} Rb6 {[%emt 0:01:47]} 20. Qc2 {[%emt 0:06:53]} Nxe4 {[%emt 0:00:17]} 21. dxe4 {[%emt 0:00:20]} Na6 {[%emt 0:00:04]} 22. Qd3 {[%emt 0:07:50][%cal Re5d4]} Qc8 {[%emt 0:05:44]} 23. Bxd4 {[%emt 0:07:54]} (23. Nxd4 $6 Rd8 24. e3 f6 $11) 23... Rd8 {[%emt 0:02:00] ...Bxd4 is the strong threat.} 24. e3 {[%emt 0:00:02]} Rb3 {[%emt 0:00:42] [#]} 25. Qc2 {[%emt 0:02:07]} Bxa3 {[%emt 0:01:17] [#]} (25... Bf8 $16) 26. Rxa3 $1 {[%emt 0:06:55][%mdl 512]} Rxa3 {[%emt 0:01:43] [#]} 27. Bxg7 $1 {[%emt 0:00:02][%mdl 64] Strongly threatening Qb2. Decoy} Qb7 {[%emt 0:04:26]} (27... Qb8 {might work better.}) 28. Bf6 $18 {[%emt 0:02:01] This pair of bishops is nice.} ({Less strong is} 28. Bxh6 Ra2 29. Qc1 (29. Qc3 Qb2 $11) 29... c5 $14) 28... Rdd3 {[%emt 0:02:09]} 29. Ne5 $1 {[%emt 0:01:45][%csl LRc6,LRd3]} Rac3 {[%emt 0:00:46]} (29... Rd6 $142 30. Qe2 Kh7) 30. Qe2 {[%emt 0:00:19] Intending Qh5 and mate.} ({Not} 30. Qxd3 Rxd3 31. Nxd3 Bb3 $15) 30... Nb4 {[%emt 0:01:15]} 31. Qh5 {[%emt 0:00:42] White mates.} Kh7 {[%emt 0:00:41]} 32. g4 {[%emt 0:01:18][%cal Bg3g4,Bg4g5][%mdl 32]} Qc8 {[%emt 0:00:39]} 33. g5 {[%emt 0:00:52]} Qf8 {[%emt 0:00:32]} 34. g6+ {[%emt 0:00:16]} Kg8 {[%emt 0:00:24]} 35. g7 {[%emt 0:00:56]} Qxg7 {[%emt 0:00:05]} 36. Bxg7 {[%emt 0:00:07]} Kxg7 {[%emt 0:00:04]} 37. Bh3 {[%emt 0:00:21]} Kf6 {[%emt 0:01:30]} 38. Qh4+ {[%emt 0:02:35]} Kg7 {[%emt 0:00:30]} 39. Bxe6 {[%emt 0:00:21]} fxe6 {[%emt 0:00:09]} 40. Qe7+ {[%emt 0:00:11]} Kh8 {[%emt 0:00:10]} 41. Qf8+ {[%emt 0:30:08] Excellently played by Ivanov!   Weighted Error Value: White=0.04 (flawless) /Black=0.46} (41. Qf7 $142 Rd8 42. Ng6#) 1-0

[Event "Marienbad B2-IM 2024"]
[Site "Marianske Lazne"]
[Date "2024.01.17"]
[Round "6.18"]
[White "Lima, Darcy"]
[Black "Pavlis, Matej"]
[Result "1-0"]
[ECO "D34"]
[WhiteElo "2370"]
[BlackElo "2088"]
[Annotator "TA"]
[PlyCount "87"]
[EventDate "2024.01.10"]
[EventType "tourn"]
[EventCountry "CZE"]
[SourceTitle "playchess.com"]
[Source "ChessBase"]
[SourceQuality "1"]
[TimeControl "40/5400+30:1800+30"]

{[%evp 18,87,32,32,45,55,56,58,58,28,30,21,37,33,45,12,47,13,57,38,38,15,46,36,45,45,64,42,83,72,90,88,93,88,90,100,58,75,70,78,69,25,82,63,90,82,191,166,312,280,453,0,0,0,108,0,50,56,105,81,61,66,62,-271,44,47,47,23,262,260,314,307]} 1. c4 {[%emt 0:00:02]} e6 {[%emt 0:00:10]} 2. g3 {[%emt 0:00:11]} c5 {[%emt 0:00:06]} 3. Bg2 {[%emt 0:00:28]} Nc6 {[%emt 0:01:17]} 4. Nf3 {[%emt 0:01:00]} d5 {[%emt 0:00:08]} 5. O-O {[%emt 0:00:46]} Nf6 {[%emt 0:00:05]} 6. cxd5 {[%emt 0:00:26]} exd5 {[%emt 0:02:19]} 7. d4 {[%emt 0:00:18]} Be7 {[%emt 0:00:43]} 8. Nc3 {[%emt 0:00:38][%cal Bb1c3,Bc3a4,Ba4c5,Bc5d3][%mdl 32]} O-O {[%emt 0:00:09]} 9. b3 {[%emt 0:00:12]} Re8 {[%emt 0:01:13]} 10. Bb2 {[%emt 0:00:16]} Be6 {[%emt 0:03:08] D30: Queen's Gambit Declined: Systems without Nc3.} 11. Rc1 {[%emt 0:04:30]} Rc8 {[%emt 0:01:06]} 12. dxc5 {[%emt 0:01:10]} Bxc5 {[%emt 0:00:05][%cal Be7c5,Bc5f8,Bf8d6][%mdl 32] White is slightly better.} 13. Na4 {[%emt 0:01:36]} Bf8 {[%emt 0:04:04]} 14. Nc5 {[%emt 0:02:00] [#]} Bg4 $146 {[%emt 0:10:48]} ({Predecessor:} 14... Bxc5 15. Rxc5 Ne4 16. Rc1 Qb6 17. Nd4 Nxd4 18. Qxd4 Qxd4 19. Bxd4 b6 20. f3 Nd6 {1-0 Abramovic,B (2334)-Sharan,R (2033) Novi Sad TS07 Mix 2021 (8)}) 15. Nd3 {[%emt 0:07:07]} (15. Nxb7 $2 Qb6 16. Bxf6 gxf6 17. Qxd5 Qxb7 $19) 15... Bd6 {[%emt 0:04:56]} 16. Rc2 {[%emt 0:02:19]} Qe7 {[%emt 0:04:06]} 17. Qc1 {[%emt 0:24:53]} h6 {[%emt 0:13:00]} 18. Rd1 {[%emt 0:00:24]} Ne4 {[%emt 0:11:45]} 19. Nf4 {[%emt 0:22:46]} Bxf4 {[%emt 0:08:51]} (19... Bc5 20. e3 $16) 20. Qxf4 {[%emt 0:00:12]} Be6 {[%emt 0:00:05]} 21. Rdc1 {[%emt 0:05:39]} Bd7 {[%emt 0:14:16]} 22. Ne1 {[%emt 0:05:29]} g5 {[%emt 0:08:23]} 23. Qe3 {[%emt 0:02:58]} Qd6 {[%emt 0:03:44]} 24. Qd3 $40 {[%emt 0:05:53][%mdl 128] Wards off d4. Black is in trouble.} Bf5 {[%emt 0:05:16]} 25. f3 $1 {[%emt 0:03:09]} Nxg3 {[%emt 0:00:47][%mdl 64] Discovered Attack} 26. e4 {[%emt 0:00:02]} Nxe4 {[%emt 0:02:12]} 27. fxe4 {[%emt 0:00:54]} Bxe4 {[%emt 0:00:02]} 28. Bxe4 {[%emt 0:02:41]} Rxe4 {[%emt 0:00:01]} 29. Nf3 {[%emt 0:02:20][%cal Of3g5] Hoping for Nxg5!} Rce8 {[%emt 0:00:18]} (29... Rc7 $11 {keeps the balance.} 30. Rc5 Nb4) 30. Rg2 $1 $16 {[%emt 0:00:17]} Nb4 {[%emt 0:01:49][%cal Bc6b4,Bb4d3,Bd3f4][%mdl 32]} 31. Qd2 {[%emt 0:02:13] a3 would be deadly.} f6 {[%emt 0:00:36]} (31... Nxa2 $2 32. Nxg5 Qb6+ 33. Kh1 hxg5 34. Rxg5+ Kf8 35. Bg7+ Ke7 36. Rxd5 $18) (31... Qf4 $16) 32. Rf1 $18 {[%emt 0:01:09][%cal Rf3g5] Threatens to win with Nxg5!} d4 {[%emt 0:00:24]} (32... Rf4 $142 33. h4 Ree4) 33. Nxd4 {[%emt 0:01:53]} (33. Bxd4 $6 Rf4 34. Bxa7 Nd3 $18) 33... Qb6 $2 {[%emt 0:00:19]} (33... Qc5 34. Rxf6 Nc6) 34. Qf2 $2 {[%emt 0:01:02]} ({White must play} 34. Rgf2 $18 Rd8 35. Rxf6 Rexd4 36. Bxd4 Qxd4+ 37. Qxd4 Rxd4 38. Rxh6) 34... Nd3 $11 {[%emt 0:00:05]} 35. Qf5 {[%emt 0:00:05] Qg6+ is the strong threat.} (35. Qxf6 $2 Qxf6 36. Nf3 Nxb2 $19) 35... Kg7 {[%emt 0:00:25] Prevents Qg6+} (35... Nxb2 $11 {remains equal.} 36. Qg6+ Kh8) 36. Ba1 {[%emt 0:00:22]} ({White should try} 36. Qd7+ $16 R8e7 37. Qb5 Qxb5 38. Nxb5) 36... R8e5 {[%emt 0:01:10]} (36... Rxd4 $11 37. Bxd4 Qxd4+ 38. Kh1 Nf4) 37. Qd7+ $1 $14 {[%emt 0:00:30]} Re7 {[%emt 0:00:04]} (37... Kg6 $1 $14) 38. Qb5 {[%emt 0:00:30]} (38. Qd6 {is interesting.} Qxd6 39. Nf5+ Kg6 40. Nxd6 Rf4 41. Bc3) 38... Qxb5 {[%emt 0:00:43]} 39. Nxb5 {[%emt 0:00:01]} Nf4 {[%emt 0:00:17] [#] aiming for ...Nh3+.} 40. Nd6 $2 {[%emt 0:00:40][%mdl 8192] [#]} Re1 $2 {[%emt 0:00:50]} (40... Nh3+ $1 $19 41. Kh1 Re1) 41. Nf5+ {[%emt 0:30:37]} Kh7 {[%emt 0:30:01] ( -> ...Nh3+)} 42. Rd2 {[%emt 0:00:00]} (42. Rc2 $5 {[%cal Rf5e7]} R7e2 43. Rxe2 Rxe2 44. a4 $14 (44. Bxf6 Kg6 $14)) 42... Nh3+ $2 {[%emt 0:00:00]} (42... R7e4 $11 {and Black has nothing to worry.}) 43. Kg2 $18 {[%emt 0:00:00][%cal Of5e7]} Nf4+ {[%emt 0:00:00] [#]} 44. Rxf4 $1 {[%emt 0:00:00][%mdl 512] Weighted Error Value: White=0.41/Black=0.52} 1-0

[Event "Marienbad B2-IM 2024"]
[Site "Marianske Lazne"]
[Date "2024.01.17"]
[Round "6.19"]
[White "Kejna, Piotr"]
[Black "Luberanski, Jakub"]
[Result "1/2-1/2"]
[ECO "E36"]
[WhiteElo "2269"]
[BlackElo "2278"]
[Annotator "RC"]
[PlyCount "24"]
[EventDate "2024.01.10"]
[EventType "tourn"]
[EventCountry "CZE"]
[SourceTitle "playchess.com"]
[Source "ChessBase"]
[SourceQuality "1"]
[TimeControl "40/5400+30:1800+30"]

1. d4 {[%emt 0:00:02]} Nf6 {[%emt 0:04:54]} 2. c4 {[%emt 0:00:11]} e6 {[%emt 0:00:04]} 3. Nc3 {[%emt 0:00:08]} Bb4 {[%emt 0:00:21]} 4. Qc2 {[%emt 0:00:04]} d5 {[%emt 0:01:40]} 5. a3 {[%emt 0:00:35]} Bxc3+ {[%emt 0:00:05]} 6. Qxc3 {[%emt 0:00:05]} O-O {[%emt 0:00:08]} 7. Bg5 {[%emt 0:00:16]} c5 {[%emt 0:03:16]} 8. cxd5 {[%emt 0:12:49]} cxd4 {[%emt 0:03:06]} 9. Qxd4 {[%emt 0:00:40]} Nc6 {[%emt 0:00:51]} 10. Qh4 {[%emt 0:02:01]} Qxd5 {[%emt 0:10:36]} 11. Bxf6 {[%emt 0:02:33]} gxf6 {[%emt 0:00:06]} 12. Nf3 {[%emt 0:05:59]} e5 {[%emt 0:20:52]} 1/2-1/2

[Event "Marienbad B2-IM 2024"]
[Site "Marianske Lazne"]
[Date "2024.01.17"]
[Round "6.20"]
[White "Lim, Zhuo Ren"]
[Black "Plischki, Sebastian"]
[Result "1/2-1/2"]
[ECO "A37"]
[WhiteElo "2218"]
[BlackElo "2345"]
[Annotator "TA"]
[PlyCount "120"]
[EventDate "2024.01.10"]
[EventType "tourn"]
[EventCountry "CZE"]
[SourceTitle "playchess.com"]
[Source "ChessBase"]
[SourceQuality "1"]
[TimeControl "40/5400+30:1800+30"]

{[%evp 15,120,15,18,-15,0,-9,-13,-40,-47,-30,-11,0,0,0,-9,-14,-18,-30,-16,-35,0,0,0,-9,-9,-19,-19,-33,-30,-28,-18,-17,-9,-28,0,0,8,8,13,0,0,0,0,0,0,0,0,0,20,4,33,0,0,0,0,0,8,0,0,-9,0,0,0,0,0,0,0,0,0,-16,-16,-16,-16,-16,-8,-8,-8,-8,-8,-8,-8,-43,-43,-43,-43,-52,-8,-8,-8,-8,-8,-16,-16,-15,-8,-8,8,8,8,9,9,9,10,0,10,0,10]} 1. c4 {[%emt 0:00:07]} c5 {[%emt 0:00:14]} 2. Nf3 {[%emt 0:00:15]} g6 {[%emt 0:01:05]} 3. g3 {[%emt 0:00:14]} Bg7 {[%emt 0:00:06]} 4. Bg2 {[%emt 0:00:10]} Nc6 {[%emt 0:00:08]} 5. Nc3 {[%emt 0:00:12]} d6 {[%emt 0:00:15]} 6. O-O {[%emt 0:00:16]} Rb8 {[%emt 0:00:39]} 7. e3 {[%emt 0:03:04]} Nf6 {[%emt 0:00:51]} 8. d4 {[%emt 0:00:25]} O-O {[%emt 0:00:27]} 9. Re1 {[%emt 0:03:24] E65: King's Indian: Fianchetto: 6...c5 7 0-0 without d5 by White.} a6 {[%emt 0:02:58]} 10. b3 {[%emt 0:04:21]} b5 {[%emt 0:07:51]} 11. cxb5 {[%emt 0:00:21]} axb5 {[%emt 0:00:46] [#]} 12. Bb2 $146 {[%emt 0:00:20]} ({Predecessor:} 12. Ng5 Qc7 13. dxc5 dxc5 14. Bb2 h6 15. Nf3 Rd8 16. Qe2 c4 17. Rac1 Be6 18. a3 {½-½ Englert,F (1794)-Buehler,S (1622) Wiesbaden op 27th 2015 (7)}) 12... cxd4 {[%emt 0:02:19]} (12... c4 $5 {[%cal Rb5b4]}) 13. Nxd4 {[%emt 0:03:09]} Nxd4 {[%emt 0:00:10]} 14. Qxd4 {[%emt 0:00:21]} Be6 {[%emt 0:05:51][%cal Of6d5]} 15. Qd2 {[%emt 0:00:39] Dodges Nd5} Qa5 {[%emt 0:06:26]} 16. Red1 {[%emt 0:00:32]} Rfc8 {[%emt 0:03:14]} (16... b4 $5 {[%cal Rb4c3]} 17. Ne2 Rfc8 $11) 17. Ne2 {[%emt 0:00:49]} Qxd2 {[%emt 0:01:16]} 18. Rxd2 {[%emt 0:00:05]} b4 {[%emt 0:02:16]} 19. Rc1 {[%emt 0:01:31]} Rxc1+ {[%emt 0:01:14]} 20. Nxc1 {[%emt 0:00:15]} Bf5 {[%emt 0:04:13]} 21. f3 {[%emt 0:03:39]} Rc8 {[%emt 0:06:07][%cal Of6g4]} 22. Ne2 {[%emt 0:03:19]} Bb1 {[%emt 0:04:40]} 23. Bf1 {[%emt 0:07:06]} h5 {[%emt 0:09:34]} (23... Bxa2 $2 24. Bxf6 Bxb3 25. Bxg7 (25. Bxe7 Bc2 $16) 25... Kxg7 26. Rb2 $18) 24. h4 {[%emt 0:02:22]} Kf8 {[%emt 0:04:30]} (24... Bxa2 $2 25. Bxf6 Bxb3 26. Bxg7 (26. Bxe7 Bc2 $16) 26... Kxg7 27. Rb2 $18) (24... Nd7 $5 {[%cal Rg7c3]}) 25. Kf2 {[%emt 0:00:58]} Rc2 {[%emt 0:21:35]} (25... Bxa2 $2 26. Bxf6 Bxb3 27. Bxg7+ Kxg7 28. Rb2 $18) 26. Rxc2 {[%emt 0:00:19]} Bxc2 {[%emt 0:00:01]} 27. Nd4 {[%emt 0:02:48]} Bb1 {[%emt 0:01:35]} 28. a4 {[%emt 0:00:38] [#] a5 is the strong threat.} bxa3 {[%emt 0:01:08]} 29. Bxa3 {[%emt 0:00:01]} Nd5 {[%emt 0:01:16]} 30. Bc4 {[%emt 0:00:36]} Nb6 {[%emt 0:00:54]} 31. Be2 {[%emt 0:00:37]} Be5 {[%emt 0:03:40]} 32. Nc6 {[%emt 0:01:55]} Bf6 {[%emt 0:00:18]} 33. b4 {[%emt 0:00:56]} Ba2 {[%emt 0:00:58]} 34. b5 {[%emt 0:00:23]} Ke8 {[%emt 0:00:45]} 35. Bb4 {[%emt 0:00:30] And now Ba5 would win.} Kd7 {[%emt 0:00:47]} 36. Na5 {[%emt 0:03:34]} Kc7 {[%emt 0:02:28]} 37. Bd2 {[%emt 0:00:56]} d5 {[%emt 0:01:15]} 38. e4 {[%emt 0:01:00]} Nc4 {[%emt 0:02:26]} 39. Nxc4 {[%emt 0:00:29]} (39. Bb4 {seems wilder.} Kb6 40. Nc6 dxe4 41. Bxe7 e3+ 42. Kg2) 39... dxc4 $11 {[%emt 0:01:12][%mdl 4096] Endgame KBB-KBB} 40. Ba5+ {[%emt 0:00:15]} Kb7 {[%emt 0:01:38]} 41. Ke3 {[%emt 0:30:21]} Bb3 {[%emt 0:09:31]} 42. e5 {[%emt 0:00:00]} Bxe5 {[%emt 0:00:19] Strongly threatening ...c3.} 43. f4 {[%emt 0:00:00]} Bb2 {[%emt 0:04:55]} 44. Bf3+ {[%emt 0:00:00]} Kb8 {[%emt 0:00:09] aiming for ...c3.} 45. Kd2 {[%emt 0:00:00]} Bd4 {[%emt 0:00:10]} 46. Bc3 {[%emt 0:00:00]} Bf2 {[%emt 0:02:24]} 47. Ke2 {[%emt 0:00:00]} Bc5 {[%emt 0:00:43]} (47... Bxg3 $2 48. Be5+ Ka7 49. Bc7 Bxf4 50. Bxf4 $18) 48. Bd5 {[%emt 0:00:00]} e6 {[%emt 0:02:33]} 49. Bc6 {[%emt 0:00:00]} Bc2 {[%emt 0:01:55]} 50. Be8 {[%emt 0:00:00]} Bd3+ {[%emt 0:00:43]} 51. Kf3 {[%emt 0:00:00] The position is equal.} Kc7 {[%emt 0:01:22]} 52. Bxf7 {[%emt 0:00:00]} Kd7 {[%emt 0:00:50] Black wants to play ...Ke7.} 53. g4 $1 {[%emt 0:00:00]} Ke7 {[%emt 0:00:46]} 54. Bg8 {[%emt 0:00:00]} Bc2 {[%emt 0:02:13] ...Bd1+ would be deadly.} 55. Kg3 {[%emt 0:00:00]} Ba4 {[%emt 0:02:37]} 56. gxh5 {[%emt 0:00:00]} gxh5 {[%emt 0:00:05] [#]} 57. f5 $1 {[%emt 0:00:00]} Bd6+ {[%emt 0:02:22]} 58. Kf2 {[%emt 0:00:00] Black must now prevent f6+.} Bc5+ {[%emt 0:01:12]} 59. Kg3 {[%emt 0:00:00]} Bd6+ {[%emt 0:00:09]} 60. Kf2 {[%emt 0:00:00] Hoping for f6+.} Bc5+ {Weighted Error Value: White=0.06 (flawless) /Black=0.06 (flawless)} 1/2-1/2